fUSD/lending_fUSD_20250906
["ID","MTS","AMOUNT","RATE_DAILY","PERIOD"]
[383908954,1757171501506,-400.0,0.00036712,8]
[383908955,1757171501515,-400.0,0.00036712,8]
[383908956,1757171501524,-400.0,0.00036712,8]
[383908957,1757171501534,-313.393461,0.00036712,8]
[383908958,1757171501544,-400.0,0.00036712,8]
[383908959,1757171501558,-411.25963864,0.00036712,8]
[383908960,1757171501567,-400.0,0.00036712,8]
[383908961,1757171501577,-400.0,0.00036712,8]
[383908962,1757171501587,-400.0,0.00036712,8]
[383908963,1757171501598,-400.0,0.00036712,8]
[383908964,1757171501607,-400.0,0.00036712,8]
[383908965,1757171501617,-543.33500991,0.00036712,8]
[383908966,1757171501628,-406.25005968,0.00036712,8]
[383908967,1757171501637,-400.0,0.00036712,8]
[383908968,1757171501648,-400.0,0.00036712,8]
[383908969,1757171501658,-400.0,0.00036712,8]
[383908970,1757171501668,-453.94,0.00036712,8]
[383908971,1757171501678,-400.0,0.00036712,8]
[383908972,1757171501687,-400.0,0.00036712,8]
[383908973,1757171501697,-659.2,0.00036712,8]
[383908974,1757171501707,-400.0,0.00036712,8]
[383908975,1757171501719,-400.0,0.00036712,8]
[383908976,1757171501728,-400.0,0.00036712,8]
[383908977,1757171501738,-400.0,0.00036712,8]
[383908978,1757171501748,-400.0,0.00036712,8]
[383908979,1757171501758,-400.0,0.00036712,8]
[383908980,1757171501768,-576.91,0.00036712,8]
[383908981,1757171501777,-400.0,0.00036712,8]
[383908982,1757171501787,-571.77,0.00036712,8]
[383908983,1757171501796,-455.16,0.00036712,8]
[383908984,1757171501805,-693.34,0.00036712,8]
[383908985,1757171501814,-400.0,0.00036712,8]
[383908986,1757171501824,-400.0,0.00036712,8]
[383908987,1757171501833,-650.71,0.00036712,8]
[383908988,1757171501843,-400.0,0.00036712,8]
[383908989,1757171501853,-403.0,0.00036712,8]
[383908990,1757171501863,-400.0,0.00036712,8]
[383908991,1757171501872,-400.0,0.00036712,8]
[383908992,1757171501882,-400.0,0.00036712,8]
[383908993,1757171501890,-400.0,0.00036712,8]
[383908994,1757171501900,-400.0,0.00036712,8]
[383908995,1757171501910,-400.0,0.00036712,8]
[383908996,1757171501920,-705.36,0.00036712,8]
[383908997,1757171501930,-998.89,0.00036712,8]
[383908998,1757171501940,-400.0,0.00036712,8]
[383908999,1757171501950,-400.0,0.00036712,8]
[383909000,1757171501959,-581.35,0.00036712,8]
[383909001,1757171501968,-400.0,0.00036712,8]
[383909002,1757171501978,-404.95410527,0.00036712,8]
[383909003,1757171501987,-219.89104026,0.00036712,8]
[383909004,1757171501997,-400.0,0.00036712,8]
[383909005,1757171502007,-400.0,0.00036712,8]
[383909006,1757171502017,-400.0,0.00036712,8]
[383909007,1757171502027,-400.0,0.00036712,8]
[383909008,1757171502036,-400.0,0.00036712,8]
[383909009,1757171502047,-400.0,0.00036712,8]
[383909010,1757171502056,-400.0,0.00036712,8]
[383909011,1757171502066,-412.63,0.00036712,8]
[383909012,1757171502075,-400.0,0.00036712,8]
[383909013,1757171502085,-419.15904592,0.00036712,8]
[383909014,1757171502096,-603.08,0.00036712,8]
[383909015,1757171502106,-438.63,0.00036712,8]
[383909016,1757171502115,-400.0,0.00036712,8]
[383909017,1757171502124,-400.0,0.00036712,8]
[383909018,1757171502134,-400.0,0.00036712,8]
[383909019,1757171502143,-400.0,0.00036712,8]
[383909020,1757171502153,-400.0,0.00036712,8]
[383909021,1757171502162,-400.0,0.00036712,8]
[383909022,1757171502172,-400.0,0.00036712,8]
[383909023,1757171502181,-400.0,0.00036712,8]
[383909024,1757171502191,-400.0,0.00036712,8]
[383909025,1757171502200,-400.0,0.00036712,8]
[383909026,1757171502210,-410.04681819,0.00036712,8]
[383909027,1757171502220,-400.0,0.00036712,8]
[383909028,1757171502229,-400.0,0.00036712,8]
[383909029,1757171502239,-400.0,0.00036712,8]
[383909030,1757171502249,-400.0,0.00036712,8]
[383909031,1757171502259,-400.0,0.00036712,8]
[383909032,1757171502269,-400.0,0.00036712,8]
[383909033,1757171502279,-400.0,0.00036712,8]
[383909034,1757171502289,-400.0,0.00036712,8]
[383909035,1757171502299,-400.0,0.00036712,8]
[383909036,1757171502309,-452.6,0.00036712,8]
[383909037,1757171502319,-400.0,0.00036712,8]
[383909038,1757171502329,-400.0,0.00036712,8]
[383909039,1757171502339,-1283.92,0.00036712,8]
[383909040,1757171502350,-398.32132728,0.00036712,8]
[383909041,1757171502360,-579.45,0.00036712,8]
[383909042,1757171502371,-651.77,0.00036712,8]
[383909043,1757171502381,-400.0,0.00036712,8]
[383909044,1757171502390,-476.10332076,0.00036712,8]
[383909045,1757171502400,-400.0,0.00036712,8]
[383909046,1757171502411,-400.0,0.00036712,8]
[383909047,1757171502420,-400.0,0.00036712,8]
[383909048,1757171502431,-400.0,0.00036712,8]
[383909049,1757171502440,-400.0,0.00036712,8]
[383909050,1757171502450,-490.29,0.00036712,8]
[383909051,1757171502460,-400.0,0.00036712,8]
[383909052,1757171502469,-400.0,0.00036712,8]
[383909053,1757171502479,-400.0,0.00036712,8]
[383909054,1757171502489,-418.63023099,0.00036712,8]
[383909055,1757171502499,-400.0,0.00036712,8]
[383909056,1757171502510,-400.0,0.00036712,8]
[383909057,1757171502520,-400.0,0.00036712,8]
[383909058,1757171502530,-412.56640158,0.00036712,8]
[383909059,1757171502541,-400.0,0.00036712,8]
[383909060,1757171502553,-400.0,0.00036712,8]
[383909061,1757171502563,-400.0,0.00036712,8]
[383909062,1757171502573,-400.0,0.00036712,8]
[383909063,1757171502584,-400.0,0.00036712,8]
[383909064,1757171502594,-400.0,0.00036712,8]
[383909065,1757171502605,-400.0,0.00036712,8]
[383909066,1757171502615,-513.66,0.00036712,8]
[383909067,1757171502626,-400.0,0.00036712,8]
[383909068,1757171502636,-675.35,0.00036712,8]
[383909069,1757171502646,-400.0,0.00036712,8]
[383909070,1757171502657,-400.0,0.00036712,8]
[383909071,1757171502667,-400.0,0.00036712,8]
[383909072,1757171502677,-400.0,0.00036712,8]
[383909073,1757171502688,-400.0,0.00036712,8]
[383909074,1757171502699,-400.0,0.00036712,8]
[383909075,1757171502708,-400.0,0.00036712,8]
[383909076,1757171502719,-400.0,0.00036712,8]
[383909077,1757171502728,-546.31,0.00036712,8]
[383909078,1757171502738,-400.0,0.00036712,8]
[383909079,1757171502748,-400.0,0.00036712,8]
[383909080,1757171502758,-400.0,0.00036712,8]
[383909081,1757171502768,-400.0,0.00036712,8]
[383909082,1757171502778,-559.97,0.00036712,8]
[383909083,1757171502788,-408.07,0.00036712,8]
[383909084,1757171502798,-400.0,0.00036712,8]
[383909085,1757171502808,-400.0,0.00036712,8]
[383909086,1757171502820,-400.0,0.00036712,8]
[383909087,1757171502831,-928.94,0.00036712,8]
[383909088,1757171502842,-440.94,0.00036712,8]
[383909089,1757171502854,-499.33,0.00036712,8]
[383909090,1757171502864,-495.94,0.00036712,8]
[383909091,1757171502874,-400.0,0.00036712,8]
[383909092,1757171502885,-400.0,0.00036712,8]
[383909093,1757171502895,-400.0,0.00036712,8]
[383909094,1757171502906,-400.0,0.00036712,8]
[383909095,1757171502916,-400.0,0.00036712,8]
[383909096,1757171502926,-400.0,0.00036712,8]
[383909097,1757171502936,-400.0,0.00036712,8]
[383909098,1757171502946,-400.0,0.00036712,8]
[383909099,1757171502956,-409.80377682,0.00036712,8]
[383909100,1757171502966,-400.0,0.00036712,8]
[383909101,1757171502986,-400.0,0.00036712,8]
[383909102,1757171502997,-400.0,0.00036712,8]
[383909103,1757171503008,-400.0,0.00036712,8]
[383909104,1757171503019,-400.0,0.00036712,8]
[383909105,1757171503029,-400.0,0.00036712,8]
[383909106,1757171503040,-400.0,0.00036712,8]
[383909107,1757171503050,-400.0,0.00036712,8]
[383909108,1757171503061,-400.0,0.00036712,8]
[383909109,1757171503072,-766.11,0.00036712,8]
[383909110,1757171503083,-400.0,0.00036712,8]
[383909111,1757171503094,-400.0,0.00036712,8]
[383909112,1757171503106,-523.63250287,0.00036712,8]
[383909113,1757171503117,-400.0,0.00036712,8]
[383909114,1757171503127,-400.0,0.00036712,8]
[383909115,1757171503138,-442.65,0.00036712,8]
[383909116,1757171503149,-400.0,0.00036712,8]
[383909117,1757171503160,-400.0,0.00036712,8]
[383909118,1757171503170,-400.0,0.00036712,8]
[383909119,1757171503180,-400.0,0.00036712,8]
[383909120,1757171503190,-400.0,0.00036712,8]
[383909121,1757171503200,-410.17,0.00036712,8]
[383909122,1757171503211,-400.0,0.00036712,8]
[383909123,1757171503221,-400.0,0.00036712,8]
[383909124,1757171503231,-400.0,0.00036712,8]
[383909125,1757171503242,-535.64,0.00036712,8]
[383909126,1757171503253,-400.0,0.00036712,8]
[383909127,1757171503264,-400.0,0.00036712,8]
[383909128,1757171503275,-400.0,0.00036712,8]
[383909129,1757171503285,-400.0,0.00036712,8]
[383909130,1757171503296,-400.0,0.00036712,8]
[383909131,1757171503307,-400.0,0.00036712,8]
[383909132,1757171503318,-400.0,0.00036712,8]
[383909133,1757171503328,-400.0,0.00036712,8]
[383909134,1757171503339,-400.0,0.00036712,8]
[383909135,1757171503351,-400.0,0.00036712,8]
[383909136,1757171503362,-400.0,0.00036712,8]
[383909137,1757171503372,-408.09364713,0.00036712,8]
[383909138,1757171503382,-432.64,0.00036712,8]
[383909139,1757171503393,-430.22,0.00036712,8]
[383909140,1757171503404,-400.0,0.00036712,8]
[383909141,1757171503415,-549.16417377,0.00036712,8]
[383909142,1757171503425,-400.0,0.00036712,8]
[383909143,1757171503436,-653.85,0.00036712,8]
[383909144,1757171503447,-400.0,0.00036712,8]
[383909145,1757171503457,-400.0,0.00036712,8]
[383909146,1757171503467,-400.0,0.00036712,8]
[383909147,1757171503478,-400.0,0.00036712,8]
[383909148,1757171503488,-400.0,0.00036712,8]
[383909149,1757171503499,-400.0,0.00036712,8]
[383909150,1757171503510,-400.0,0.00036712,8]
[383909151,1757171503522,-400.0,0.00036712,8]
[383909152,1757171503533,-400.0,0.00036712,8]
[383909153,1757171503548,-400.0,0.00036712,8]
[383909154,1757171503559,-400.0,0.00036712,8]
[383909155,1757171503570,-400.0,0.00036712,8]
[383909156,1757171503580,-400.0,0.00036712,8]
[383909157,1757171503591,-417.9031042,0.00036712,8]
[383909158,1757171503604,-399.43986503,0.00036712,8]
[383909159,1757171503615,-493.95,0.00036712,8]
[383909160,1757171503627,-400.0,0.00036712,8]
[383909161,1757171503638,-400.0,0.00036712,8]
[383909162,1757171503649,-400.0,0.00036712,8]
[383909163,1757171503660,-400.0,0.00036712,8]
[383909164,1757171503670,-400.0,0.00036712,8]
[383909165,1757171503681,-400.0,0.00036712,8]
[383909166,1757171503691,-400.0,0.00036712,8]
[383909167,1757171503702,-400.0,0.00036712,8]
[383909168,1757171503714,-400.0,0.00036712,8]
[383909169,1757171503724,-425.32,0.00036712,8]
[383909170,1757171503735,-430.44,0.00036712,8]
[383909171,1757171503745,-400.0,0.00036712,8]
[383909172,1757171503756,-469.95,0.00036712,8]
[383909173,1757171503766,-658.76,0.00036712,8]
[383909174,1757171503777,-1274.53,0.00036712,8]
[383909175,1757171503787,-460.86,0.00036712,8]
[383909176,1757171503798,-400.0,0.00036712,8]
[383909177,1757171503809,-578.72,0.00036712,8]
[383909178,1757171503819,-400.0,0.00036712,8]
[383909179,1757171503830,-400.0,0.00036712,8]
[383909180,1757171503840,-1619.0,0.00036712,8]
[383909181,1757171503851,-400.0,0.00036712,8]
[383909182,1757171503861,-408.29,0.00036712,8]
[383909183,1757171503872,-400.0,0.00036712,8]
[383909184,1757171503882,-530.59,0.00036712,8]
[383909185,1757171503893,-400.0,0.00036712,8]
[383909186,1757171503904,-400.0,0.00036712,8]
[383909187,1757171503915,-400.0,0.00036712,8]
[383909188,1757171503926,-424.86,0.00036712,8]
[383909189,1757171503936,-400.0,0.00036712,8]
[383909190,1757171503947,-956.04,0.00036712,8]
[383909191,1757171503956,-400.0,0.00036712,8]
[383909192,1757171503966,-408.60385502,0.00036712,8]
[383909193,1757171503976,-541.48,0.00036712,8]
[383909194,1757171503987,-400.0,0.00036712,8]
[383909195,1757171503997,-400.0,0.00036712,8]
[383909196,1757171504008,-400.0,0.00036712,8]
[383909197,1757171504018,-400.0,0.00036712,8]
[383909198,1757171504029,-400.0,0.00036712,8]
[383909199,1757171504040,-735.46,0.00036712,8]
[383909200,1757171504050,-400.0,0.00036712,8]
[383909201,1757171504060,-400.0,0.00036712,8]
[383909202,1757171504071,-400.0,0.00036712,8]
[383909203,1757171504081,-400.0,0.00036712,8]
[383909204,1757171504092,-450.24,0.00036712,8]
[383909205,1757171504103,-407.34,0.00036712,8]
[383909206,1757171504113,-376.34656159,0.00036712,8]
[383909207,1757171504123,-400.0,0.00036712,8]
[383909208,1757171504133,-400.0,0.00036712,8]
[383909209,1757171504144,-522.41,0.00036712,8]
[383909210,1757171504155,-468.39,0.00036712,8]
[383909211,1757171504167,-400.0,0.00036712,8]
[383909212,1757171504475,-455.66,0.00036712,8]
[383909213,1757171504485,-400.0,0.00036712,8]
[383909214,1757171504495,-400.0,0.00036712,8]
[383909215,1757171504504,-400.0,0.00036712,8]
[383909216,1757171504514,-400.0,0.00036712,8]
[383909217,1757171504523,-463.95,0.00036712,8]
[383909218,1757171504532,-400.0,0.00036712,8]
[383909219,1757171504542,-400.0,0.00036712,8]
[383909220,1757171504552,-422.86930009,0.00036712,8]
[383909221,1757171504562,-420.09,0.00036712,8]
[383909222,1757171504571,-410.48539386,0.00036712,8]
[383909223,1757171504580,-638.69,0.00036712,8]
[383909224,1757171504588,-400.0,0.00036712,8]
[383909225,1757171504599,-400.0,0.00036712,8]
[383909226,1757171504608,-400.0,0.00036712,8]
[383909227,1757171504617,-400.0,0.00036712,8]
[383909228,1757171504628,-400.0,0.00036712,8]
[383909229,1757171504638,-400.0,0.00036712,8]
[383909230,1757171504649,-491.96,0.00036712,8]
[383909231,1757171504658,-488.58,0.00036712,8]
[383909232,1757171504669,-402.30214866,0.00036712,8]
[383909233,1757171504679,-400.0,0.00036712,8]
[383909234,1757171504690,-400.0,0.00036712,8]
[383909235,1757171504702,-400.0,0.00036712,8]
[383909236,1757171504713,-400.0,0.00036712,8]
[383909237,1757171504724,-400.0,0.00036712,8]
[383909238,1757171504734,-400.0,0.00036712,8]
[383909239,1757171504745,-400.0,0.00036712,8]
[383909240,1757171504757,-400.0,0.00036712,8]
[383909241,1757171504768,-400.0,0.00036712,8]
[383909242,1757171504778,-400.0,0.00036712,8]
[383909243,1757171504788,-945.42,0.00036712,8]
[383909244,1757171504798,-400.0,0.00036712,8]
[383909245,1757171504809,-447.74,0.00036712,8]
[383909246,1757171504819,-174.80718315,0.00036712,8]
[383909247,1757171504828,-400.0,0.00036712,8]
[383909248,1757171504839,-400.0,0.00036712,8]
[383909249,1757171504849,-400.0,0.00036712,8]
[383909250,1757171504858,-400.0,0.00036712,8]
[383909251,1757171504868,-400.0,0.00036712,8]
[383909252,1757171504878,-400.0,0.00036712,8]
[383909253,1757171504887,-400.0,0.00036712,8]
[383909254,1757171504897,-400.0,0.00036712,8]
[383909255,1757171504909,-400.0,0.00036712,8]
[383909256,1757171504918,-400.0,0.00036712,8]
[383909257,1757171504929,-528.08,0.00036712,8]
[383909258,1757171504938,-400.0,0.00036712,8]
[383909259,1757171504948,-400.0,0.00036712,8]
[383909260,1757171504957,-400.0,0.00036712,8]
[383909261,1757171504968,-400.0,0.00036712,8]
[383909262,1757171504977,-400.0,0.00036712,8]
[383909263,1757171504986,-400.0,0.00036712,8]
[383909264,1757171504996,-400.0,0.00036712,8]
[383909265,1757171505005,-400.0,0.00036712,8]
[383909266,1757171505015,-400.0,0.00036712,8]
[383909267,1757171505025,-400.0,0.00036712,8]
[383909268,1757171505034,-400.0,0.00036712,8]
[383909269,1757171505044,-400.0,0.00036712,8]
[383909270,1757171505053,-400.0,0.00036712,8]
[383909271,1757171505063,-400.0,0.00036712,8]
[383909272,1757171505072,-400.0,0.00036712,8]
[383909273,1757171505081,-492.35,0.00036712,8]
[383909274,1757171505091,-400.0,0.00036712,8]
[383909275,1757171505102,-400.0,0.00036712,8]
[383909276,1757171505112,-400.0,0.00036712,8]
[383909277,1757171505122,-400.0,0.00036712,8]
[383909278,1757171505132,-400.0,0.00036712,8]
[383909279,1757171505143,-400.0,0.00036712,8]
[383909280,1757171505153,-400.0,0.00036712,8]
[383909281,1757171505163,-404.69,0.00036712,8]
[383909282,1757171505174,-410.17085623,0.00036712,8]
[383909283,1757171505183,-400.0,0.00036712,8]
[383909284,1757171505193,-268.28454635,0.00036712,8]
[383909285,1757171505203,-404.57008539,0.00036712,8]
[383909286,1757171505212,-647.23,0.00036712,8]
[383909287,1757171505222,-400.0,0.00036712,8]
[383909288,1757171505232,-400.0,0.00036712,8]
[383909289,1757171505241,-400.0,0.00036712,8]
[383909290,1757171505251,-400.0,0.00036712,8]
[383909291,1757171505262,-400.0,0.00036712,8]
[383909292,1757171505271,-400.0,0.00036712,8]
[383909293,1757171505282,-400.0,0.00036712,8]
[383909294,1757171505291,-410.84892648,0.00036712,8]
[383909295,1757171505301,-400.0,0.00036712,8]
[383909296,1757171505310,-400.0,0.00036712,8]
[383909297,1757171505320,-423.87132985,0.00036712,8]
[383909298,1757171505330,-400.0,0.00036712,8]
[383909299,1757171505339,-474.84,0.00036712,8]
[383909300,1757171505349,-400.0,0.00036712,8]
[383909301,1757171505359,-400.0,0.00036712,8]
[383909302,1757171505368,-400.0,0.00036712,8]
[383909303,1757171505378,-400.0,0.00036712,8]
[383909304,1757171505387,-567.14,0.00036712,8]
[383909305,1757171505397,-400.0,0.00036712,8]
[383909306,1757171505407,-400.0,0.00036712,8]
[383909307,1757171505416,-400.0,0.00036712,8]
[383909308,1757171505426,-400.0,0.00036712,8]
[383909309,1757171505437,-567.78,0.00036712,8]
[383909310,1757171505447,-400.0,0.00036712,8]
[383909311,1757171505457,-400.0,0.00036712,8]
[383909312,1757171505467,-400.0,0.00036712,8]
[383909313,1757171505476,-452.26,0.00036712,8]
[383909314,1757171505486,-400.0,0.00036712,8]
[383909315,1757171505495,-400.0,0.00036712,8]
[383909316,1757171505505,-400.0,0.00036712,8]
[383909317,1757171505515,-400.0,0.00036712,8]
[383909318,1757171505524,-408.29,0.00036712,8]
[383909319,1757171505534,-400.0,0.00036712,8]
[383909320,1757171505547,-1289.31,0.00036712,8]
[383909321,1757171505557,-500.0,0.00036712,8]
[383909322,1757171505566,-440.59,0.00036712,8]
[383909323,1757171505577,-400.0,0.00036712,8]
[383909324,1757171505587,-400.0,0.00036712,8]
[383909325,1757171505596,-580.24,0.00036712,8]
[383909326,1757171505606,-661.4,0.00036712,8]
[383909327,1757171505616,-408.25,0.00036712,8]
[383909328,1757171505626,-428.75,0.00036712,8]
[383909329,1757171505637,-400.0,0.00036712,8]
[383909330,1757171505647,-411.34956436,0.00036712,8]
[383909331,1757171505656,-400.0,0.00036712,8]
[383909332,1757171505665,-400.0,0.00036712,8]
[383909333,1757171505675,-400.0,0.00036712,8]
[383909334,1757171505684,-416.20428633,0.00036712,8]
[383909335,1757171505693,-409.68243779,0.00036712,8]
[383909336,1757171505703,-408.09643104,0.00036712,8]
[383909337,1757171505713,-408.46560937,0.00036712,8]
[383909338,1757171505723,-400.0,0.00036712,8]
[383909339,1757171505733,-400.0,0.00036712,8]
[383909340,1757171505743,-415.38413225,0.00036712,8]
[383909341,1757171505753,-400.0,0.00036712,8]
[383909342,1757171505763,-400.0,0.00036712,8]
[383909343,1757171505774,-400.0,0.00036712,8]
[383909344,1757171505783,-508.29,0.00036712,8]
[383909345,1757171505793,-400.0,0.00036712,8]
[383909346,1757171505802,-400.0,0.00036712,8]
[383909347,1757171505812,-400.0,0.00036712,8]
[383909348,1757171505822,-423.30011419,0.00036712,8]
[383909349,1757171505832,-400.0,0.00036712,8]
[383909350,1757171505842,-400.0,0.00036712,8]
[383909351,1757171505853,-400.0,0.00036712,8]
[383909352,1757171505863,-6447.51,0.00036712,5]
[383909353,1757171505872,-400.0,0.00036712,8]
[383909354,1757171505881,-400.0,0.00036712,8]
[383909355,1757171505891,-430.2,0.00036712,8]
[383909356,1757171505901,-526.9,0.00036712,8]
[383909357,1757171505911,-400.0,0.00036712,8]
[383909358,1757171505921,-400.0,0.00036712,8]
[383909359,1757171505931,-400.0,0.00036712,8]
[383909360,1757171505941,-541.21,0.00036712,8]
[383909361,1757171505950,-400.0,0.00036712,8]
[383909362,1757171505960,-662.69,0.00036712,8]
[383909363,1757171505970,-400.0,0.00036712,8]
[383909364,1757171505979,-400.0,0.00036712,8]
[383909365,1757171505989,-400.0,0.00036712,8]
[383909366,1757171505998,-580.33,0.00036712,8]
[383909367,1757171506008,-400.0,0.00036712,8]
[383909368,1757171506017,-513.04,0.00036712,8]
[383909369,1757171506027,-400.0,0.00036712,8]
[383909370,1757171506036,-400.0,0.00036712,8]
[383909371,1757171506046,-400.0,0.00036712,8]
[383909372,1757171506056,-400.0,0.00036712,8]
[383909373,1757171506066,-745.7,0.00036712,8]
[383909374,1757171506076,-546.38,0.00036712,8]
[383909375,1757171506086,-400.0,0.00036712,8]
[383909376,1757171506095,-400.0,0.00036712,8]
[383909377,1757171506107,-400.0,0.00036712,8]
[383909378,1757171506117,-400.0,0.00036712,8]
[383909379,1757171506127,-424.59,0.00036712,8]
[383909380,1757171506136,-400.0,0.00036712,8]
[383909381,1757171506145,-506.97291297,0.00036712,8]
[383909382,1757171506155,-400.0,0.00036712,8]
[383909383,1757171506164,-400.0,0.00036712,8]
[383909384,1757171506174,-400.0,0.00036712,8]
[383909385,1757171506184,-400.0,0.00036712,8]
[383909386,1757171506193,-400.0,0.00036712,8]
[383909387,1757171506203,-494.65,0.00036712,8]
[383909388,1757171506213,-449.47515992,0.00036712,8]
[383909389,1757171506222,-400.0,0.00036712,8]
[383909390,1757171506232,-423.02,0.00036712,8]
[383909391,1757171506242,-400.0,0.00036712,8]
[383909392,1757171506252,-408.69604937,0.00036712,8]
[383909393,1757171506261,-485.39,0.00036712,8]
[383909394,1757171506271,-400.0,0.00036712,8]
[383909395,1757171506281,-400.0,0.00036712,8]
[383909396,1757171506291,-400.0,0.00036712,8]
[383909397,1757171506301,-400.0,0.00036712,8]
[383909398,1757171506311,-222.14537773,0.00036712,8]
[383909399,1757171506320,-825.62,0.00036712,8]
[383909400,1757171506330,-526.47,0.00036712,8]
[383909401,1757171506339,-400.0,0.00036712,8]
[383909402,1757171506350,-400.0,0.00036712,8]
[383909403,1757171506359,-400.0,0.00036712,8]
[383909404,1757171506369,-400.0,0.00036712,8]
[383909405,1757171506379,-400.0,0.00036712,8]
[383909406,1757171506388,-400.0,0.00036712,8]
[383909407,1757171506400,-400.0,0.00036712,8]
[383909408,1757171506410,-516.31,0.00036712,8]
[383909409,1757171506420,-400.0,0.00036712,8]
[383909410,1757171506430,-403.26,0.00036712,8]
[383909411,1757171506439,-400.0,0.00036712,8]
[383909412,1757171506449,-443.32,0.00036712,8]
[383909413,1757171506459,-497.89,0.00036712,8]
[383909414,1757171506468,-400.0,0.00036712,7]
[383909415,1757171506478,-625.5,0.00036712,8]
[383909416,1757171506487,-415.44436,0.00036712,8]
[383909417,1757171506497,-501.87,0.00036712,8]
[383909418,1757171506506,-400.0,0.00036712,8]
[383909419,1757171506516,-400.0,0.00036712,8]
[383909420,1757171506525,-622.59,0.00036712,8]
[383909421,1757171506535,-400.0,0.00036712,8]
[383909422,1757171506547,-400.0,0.00036712,8]
[383909423,1757171506556,-400.0,0.00036712,8]
[383909424,1757171506565,-704.99,0.00036712,8]
[383909425,1757171506575,-810.84,0.00036712,8]
[383909426,1757171506585,-438.33,0.00036712,8]
[383909427,1757171506595,-400.0,0.00036712,8]
[383909428,1757171506605,-400.0,0.00036712,8]
[383909429,1757171506619,-400.0,0.00036712,8]
[383909430,1757171506629,-409.9,0.00036712,8]
[383909431,1757171506641,-400.0,0.00036712,8]
[383909432,1757171506651,-423.73440057,0.00036712,8]
[383909433,1757171506660,-763.55,0.00036712,8]
[383909434,1757171506670,-400.0,0.00036712,8]
[383909435,1757171506679,-400.0,0.00036712,8]
[383909436,1757171506689,-400.0,0.00036712,8]
[383909437,1757171506698,-400.0,0.00036712,8]
[383909438,1757171506709,-400.0,0.00036712,8]
[383909439,1757171506718,-400.0,0.00036712,8]
[383909440,1757171506728,-400.0,0.00036712,8]
[383909441,1757171506738,-505.84,0.00036712,8]
[383909442,1757171506747,-469.66,0.00036712,8]
[383909443,1757171506757,-400.0,0.00036712,8]
[383909444,1757171506766,-492.82,0.00036712,8]
[383909445,1757171506776,-400.0,0.00036712,8]
[383909446,1757171506786,-400.0,0.00036712,8]
[383909447,1757171506795,-432.82,0.00036712,8]
[383909448,1757171506805,-400.0,0.00036712,8]
[383909449,1757171506815,-400.0,0.00036712,8]
[383909450,1757171506825,-400.0,0.00036712,8]
[383909451,1757171506971,-400.0,0.00036712,8]
[383909452,1757171506981,-708.31,0.00036712,8]
[383909453,1757171506990,-400.0,0.00036712,8]